bitfinex/quotes_ETHUSD_20240713
["timestamp","ask_amount","ask_price","bid_price","bid_amount"]
[1720909468735,0.2192177,3161.0,3160.4,7.2523]
[1720909468899,1.09608826,3160.9,3160.4,7.2523]
[1720909470036,1.09608826,3160.9,3160.5,3.0]
[1720909470851,0.2192177,3161.0,3160.5,3.0]
[1720909472530,1.09626166,3160.9,3160.5,3.0]
[1720909472730,1.4545996,3160.9,3160.5,3.0]
[1720909474266,0.35833794,3160.9,3160.5,3.0]
[1720909477161,1.09608869,3161.2,3160.7,2.21469]
[1720909477669,1.09608869,3161.2,3160.5,5.21483]
[1720909478456,2.2657,3161.1,3160.5,3.0]
[1720909479923,2.2657,3161.1,3160.4,7.2523]
[1720909484545,2.2657,3161.1,3160.4,9.46715]
[1720909484742,0.22657,3161.1,3160.4,7.2523]
[1720909484951,1.939,3161.3,3160.4,7.2523]
[1720909485148,2.2657,3161.2,3160.4,7.2523]
[1720909486577,0.33079321,3161.1,3160.4,7.2523]
[1720909487454,2.2657,3161.0,3160.4,7.2523]
[1720909488273,2.2657,3160.8,3159.5,12.5164]
[1720909488481,1.43261851,3160.7,3159.6,2.21541]
[1720909488682,1.09640774,3160.6,3159.6,2.21541]
[1720909488884,0.82140774,3160.6,3159.6,2.21541]
[1720909489087,0.33621077,3160.7,3159.7,2.21538]
[1720909489307,0.33621077,3160.7,3159.8,0.221538]
[1720909489583,0.33621077,3160.7,3159.5,14.73193]
[1720909490458,0.33621077,3160.7,3159.6,0.55]
[1720909490702,0.33621077,3160.7,3159.6,2.76546]
[1720909490847,0.33621077,3160.7,3159.7,3.0]
[1720909491255,2.2657,3160.6,3159.5,9.5164]
[1720909491945,2.2657,3160.6,3159.5,7.2523]
[1720909492547,2.2657,3160.5,3159.5,7.2523]
[1720909493177,1.939,3160.3,3159.5,7.2523]
[1720909493380,2.2657,3160.2,3159.5,7.2523]
[1720909498586,2.2657,3160.2,3159.7,1.939]
[1720909499949,2.4204,3160.9,3159.7,1.939]
[1720909500152,0.13698344,3160.8,3159.7,1.939]
[1720909500350,3.0,3160.8,3160.1,1.939]
[1720909500585,2.4204,3160.9,3160.5,1.939]
[1720909501086,0.33079321,3161.1,3160.5,1.939]
[1720909501303,0.33079321,3161.1,3160.3,2.21497]
[1720909501304,0.33079321,3161.1,3160.9,1.939]
[1720909504366,0.33079321,3161.1,3160.5,1.939]
[1720909504965,2.55739919,3161.0,3160.1,1.939]
[1720909505305,0.42581843,3160.9,3159.8,7.2523]
[1720909505492,0.13699919,3160.8,3159.8,7.2523]
[1720909505663,0.13699919,3160.7,3159.8,7.2523]
[1720909505863,3.28881924,3160.9,3159.8,7.2523]
[1720909506091,0.70790867,3160.8,3159.8,7.2523]
[1720909506402,0.33043277,3160.6,3159.8,7.2523]
[1720909506907,2.4204,3160.5,3159.8,7.2523]
[1720909508459,0.13697395,3160.4,3159.8,7.2523]
[1720909508693,5.4204,3160.5,3159.8,7.2523]
[1720909508875,0.71205632,3160.4,3159.8,7.2523]
[1720909509076,0.57508328,3160.4,3159.8,7.2523]
[1720909509273,0.1369721,3160.3,3159.8,7.2523]
[1720909509478,0.57508328,3160.4,3159.8,7.2523]
[1720909509691,0.13696892,3160.3,3159.8,7.2523]
[1720909509866,0.13696834,3160.2,3159.8,7.2523]
[1720909510063,0.59954833,3160.3,3159.8,7.2523]
[1720909510261,0.13696995,3160.2,3159.8,7.2523]
[1720909510463,0.59954833,3160.3,3159.8,7.2523]
[1720909510800,0.13696137,3160.2,3159.8,7.2523]
[1720909510970,0.13696137,3160.1,3159.8,7.2523]
[1720909511170,0.13696137,3160.0,3159.8,7.2523]
[1720909511372,0.59954833,3160.3,3159.8,7.2523]
[1720909511595,0.49692357,3160.2,3159.8,7.2523]
[1720909511900,2.4204,3160.0,3158.7,0.116297]
[1720909512104,2.71614719,3159.6,3158.7,0.116297]
[1720909512267,1.5,3159.7,3158.8,0.00228039]
[1720909512268,1.5,3159.3,3158.8,0.00228039]
[1720909512475,2.55736874,3159.2,3158.8,0.01251362]
[1720909512694,0.13696874,3159.1,3158.8,0.01251362]
[1720909512901,2.4204,3159.2,3158.8,0.01251362]
[1720909512902,0.13696874,3159.0,3158.8,0.01251362]
[1720909513092,2.4204,3159.2,3158.7,0.116297]
[1720909513093,0.13696874,3158.9,3158.7,0.116297]
[1720909513297,0.13696874,3158.8,3158.7,0.116297]
[1720909513493,2.55736874,3158.8,3158.7,0.116297]
[1720909513805,2.4204,3158.8,3158.7,0.116297]
[1720909514019,6.39933969,3158.8,3158.7,0.116297]
[1720909514306,9.39933969,3158.8,3158.7,0.116297]
[1720909514475,7.89933969,3158.8,3158.7,0.116297]
[1720909514671,6.39933969,3158.8,3158.7,0.116297]
[1720909514872,6.26244,3158.8,3158.7,0.116297]
[1720909515102,3.26244,3158.8,3158.7,0.116297]
[1720909515303,2.4204,3158.8,3158.7,0.116297]
[1720909516199,3.9204,3158.8,3158.7,0.116297]
[1720909517806,2.4204,3158.8,3158.7,0.116297]
[1720909522590,0.72243744,3159.1,3158.7,2.055297]
[1720909522787,2.3672,3159.8,3158.7,2.055297]
[1720909523024,2.69763072,3159.8,3159.2,1.939]
[1720909523229,2.69763072,3159.8,3159.7,1.939]
[1720909523623,0.33043072,3159.8,3159.7,1.939]
[1720909523827,2.3672,3160.2,3159.7,1.939]
[1720909524005,0.23672,3160.1,3158.7,0.116297]
[1720909524194,0.23672,3160.1,3160.0,1.939]
[1720909524620,0.33040334,3160.6,3160.0,1.939]
[1720909524789,0.33040334,3160.6,3160.5,1.939]
[1720909525994,7.48,3160.9,3160.5,1.939]
[1720909527412,3.0,3161.4,3160.5,1.939]
[1720909527601,3.8672,3161.8,3161.3,1.939]
[1720909527801,3.8672,3161.8,3160.2,4.755]
[1720909527802,0.53672,3161.7,3160.2,4.755]
[1720909528006,3.8672,3161.8,3161.6,3.878]
[1720909528207,1.5,3161.7,3161.6,1.939]
[1720909529027,1.5,3161.7,3159.6,2.2792]
[1720909529028,3.0,3161.5,3159.6,2.2792]
[1720909529243,3.0,3161.1,3160.2,4.755]
[1720909529447,3.0,3161.1,3161.0,1.939]
[1720909529598,1.5,3161.1,3161.0,1.939]
[1720909529796,5.3672,3161.1,3161.0,1.939]
[1720909530106,8.3672,3161.1,3161.0,1.939]
[1720909530602,1.5,3160.7,3160.0,2.589]
[1720909530803,1.5,3160.7,3160.6,2.589]
[1720909531415,5.3672,3161.1,3160.6,2.589]
[1720909531702,5.3672,3161.1,3161.0,2.589]
[1720909531903,2.3672,3161.1,3161.0,2.589]
[1720909532116,5.3672,3161.1,3161.0,2.589]
[1720909532328,8.3672,3161.1,3159.0,7.49505]
[1720909532631,8.3672,3161.1,3161.0,2.589]
[1720909532796,6.8672,3161.1,3161.0,2.589]
[1720909532995,5.3672,3161.1,3161.0,2.589]
[1720909533256,2.3672,3161.1,3161.0,2.589]
[1720909534143,3.8672,3161.1,3161.0,2.589]
[1720909534347,6.8672,3161.1,3161.0,2.589]
[1720909536421,8.3672,3161.1,3159.1,0.82330975]
[1720909536760,3.0,3160.9,3160.8,2.589]
[1720909537090,1.5,3160.9,3160.8,2.589]
[1720909537259,3.0,3160.5,3160.4,2.589]
[1720909537552,6.0,3160.5,3160.4,2.589]
[1720909537762,6.0,3160.5,3159.1,19.5323]
[1720909537763,1.5,3160.0,3159.1,19.5323]
[1720909537909,1.5,3160.0,3159.3,2.589]
[1720909537910,1.5,3159.5,3159.3,2.589]
[1720909539510,1.5,3159.4,3159.3,2.589]
[1720909540655,3.0,3159.0,3158.9,4.12248795]
[1720909540878,3.0,3159.0,3158.8,1.54864518]
[1720909542349,3.0,3159.0,3158.3,1.56358275]
[1720909542654,2.3298,3159.1,3158.7,1.64451791]
[1720909542960,1.5,3159.3,3158.7,1.64451791]
[1720909543272,1.5,3159.3,3159.1,1.53191364]
[1720909543499,1.5,3158.9,3158.8,1.54864518]
[1720909543635,3.0,3158.9,3158.8,1.54864518]
[1720909544181,1.5,3158.9,3158.8,1.54864518]
[1720909544337,1.5,3158.9,3158.7,0.116297]
[1720909544536,1.7,3159.2,3158.8,1.54864518]
[1720909544972,1.07351218,3159.4,3158.7,0.116297]
[1720909545129,1.07351218,3159.2,3158.7,0.116297]
[1720909545332,2.3298,3158.8,3158.7,0.116297]
[1720909545645,0.10608,3158.8,3158.7,1.64451791]
[1720909545847,0.10608,3158.8,3158.7,0.116297]
[1720909546045,0.29679307,3158.8,3158.7,0.116297]
[1720909547375,0.4362237,3158.8,3158.7,0.116297]
[1720909547947,0.3301437,3158.8,3158.7,2.705297]
[1720909548940,0.3301437,3158.8,3158.7,3.255297]
[1720909549144,1.7,3160.0,3158.7,3.255297]
[1720909549438,1.40369345,3159.9,3159.7,2.589]
[1720909549637,1.40369345,3159.9,3159.3,2.589]
[1720909549835,1.07351218,3159.7,3159.3,2.589]
[1720909552583,1.7,3159.5,3158.9,2.589]
[1720909553086,2.77351218,3159.5,3158.9,2.589]
[1720909553379,2.63,3159.4,3158.9,2.589]
[1720909553583,3.70351218,3159.4,3158.9,2.589]
[1720909554381,2.63,3159.4,3158.9,2.589]
[1720909556387,2.63,3159.4,3159.3,2.589]
[1720909558781,2.63,3159.4,3158.8,2.589]
[1720909559929,1.07351218,3159.0,3158.8,2.589]
[1720909560083,1.07351218,3159.0,3158.7,0.116297]
[1720909560276,1.07351218,3158.8,3158.7,0.116297]
[1720909561292,1.7,3158.3,3157.4,7.2523]
[1720909561496,1.07351218,3158.4,3156.9,2.589]
[1720909561779,1.07351218,3158.2,3156.9,2.589]
[1720909561983,11.80620573,3158.1,3156.7,2.589]
[1720909562596,2.70264418,3158.9,3157.2,2.589]
[1720909562776,1.07351218,3158.9,3157.7,2.589]
[1720909563238,3.0,3159.0,3157.7,2.589]
[1720909563714,3.0,3159.0,3157.8,0.55]
[1720909563907,4.07351218,3159.1,3157.8,0.55]
[1720909564107,1.07351218,3159.1,3157.8,0.55]
[1720909564643,2.03016172,3159.0,3157.8,0.55]
[1720909564849,1.07351218,3158.9,3157.8,0.55]
[1720909565153,4.07351218,3158.9,3157.8,0.55]
[1720909565605,1.07351218,3158.7,3157.8,0.55]
[1720909565942,1.07351218,3158.7,3157.3,2.2897]
[1720909566323,3.0,3158.9,3157.3,2.2897]
[1720909566324,1.07351218,3158.5,3157.3,2.2897]
[1720909567210,1.07351218,3158.5,3157.4,0.55]
[1720909567643,1.07351218,3158.7,3157.6,2.589]
[1720909567817,1.07351218,3158.7,3157.7,0.55]
[1720909568226,3.0,3159.1,3158.1,2.2897]
[1720909568415,4.07351218,3159.2,3158.2,0.55]
[1720909568815,3.79851218,3159.2,3158.2,0.55]
[1720909569419,3.0,3159.2,3158.2,0.55]
[1720909569627,3.0,3159.3,3158.2,0.55]
[1720909569940,5.49851218,3159.4,3158.2,0.55]
[1720909570360,2.49851218,3159.4,3158.2,0.55]
[1720909571240,3.16,3159.5,3158.2,0.55]
[1720909571632,3.0,3159.4,3158.2,0.55]
[1720909572358,0.79851218,3159.6,3158.4,2.589]
[1720909572516,0.79851218,3159.6,3158.5,0.55]
[1720909572856,0.79851218,3159.9,3158.5,0.55]
[1720909573054,0.79851218,3159.9,3158.6,2.2897]
[1720909573252,0.79851218,3159.9,3158.7,0.55]
[1720909573416,11.80620573,3160.0,3158.8,2.589]
[1720909573612,11.80620573,3160.0,3158.9,0.55]
[1720909573839,0.79851218,3160.3,3158.9,0.55]
[1720909574031,2.49851218,3160.3,3158.9,0.55]
[1720909575507,0.79851218,3160.3,3159.0,2.2897]
[1720909575752,0.79851218,3160.3,3159.1,0.55]
[1720909576126,0.79851218,3160.5,3159.2,2.589]
[1720909576326,3.0,3160.6,3159.4,2.4048]
[1720909576642,2.849,3160.7,3159.6,2.589]
[1720909577016,2.849,3160.7,3159.7,0.55]
[1720909577217,0.33013517,3160.6,3159.7,0.55]
[1720909577855,3.33013517,3160.6,3159.7,0.55]
[1720909579027,0.79851218,3160.5,3159.7,0.55]
[1720909579250,0.79851218,3160.5,3159.5,0.55]
[1720909579819,0.79851218,3160.3,3159.4,2.4048]
[1720909580044,2.70799332,3160.4,3159.4,2.4048]
[1720909580216,0.79851218,3160.3,3159.4,2.4048]
[1720909581087,0.79851218,3160.3,3158.8,2.589]
[1720909581088,2.71081615,3160.2,3158.9,2.4048]
[1720909581219,5.55981615,3160.3,3158.9,2.4048]
[1720909581574,5.71081615,3160.2,3158.9,2.4048]
[1720909582458,5.71081615,3160.2,3159.0,0.55]
[1720909582617,3.0,3160.2,3159.0,0.55]
[1720909583416,2.71081615,3160.4,3159.1,2.4048]
[1720909583618,5.71081615,3160.5,3159.2,0.55]
[1720909583821,2.71081615,3160.4,3159.2,0.55]
[1720909584039,3.0,3160.5,3159.2,0.55]
[1720909584228,2.71364207,3160.4,3159.2,0.55]
[1720909584430,2.71332142,3160.4,3159.2,0.55]
[1720909584750,2.71332142,3160.4,3159.2,0.5]
[1720909585264,2.71332142,3160.4,3158.7,2.21609]
[1720909585265,1.5,3157.0,3155.5,0.116297]
[1720909585486,2.589,3155.9,3155.5,0.116297]
[1720909585780,0.2138268,3155.3,3153.5,2.4048]
[1720909585920,1.0982817,3155.2,3153.5,2.4048]
[1720909586118,0.98110223,3154.3,3153.9,2.589]
[1720909586329,1.31052084,3154.5,3153.9,2.589]
[1720909586330,1.75239797,3154.4,3153.9,2.589]
[1720909586531,0.65411627,3154.4,3153.9,2.589]
[1720909586962,0.98110223,3154.6,3154.3,4.9938]
[1720909586963,3.01465359,3154.5,3154.3,4.9938]
[1720909587165,0.98110223,3154.8,3154.3,4.9938]
[1720909587166,3.01484972,3154.8,3154.3,4.9938]
[1720909587460,3.01484972,3154.9,3154.6,2.589]
[1720909587970,3.01484972,3155.2,3154.6,2.589]
[1720909588121,3.01484972,3155.0,3154.3,2.90431965]
[1720909588319,3.01484972,3154.8,3154.3,2.90431965]
[1720909588551,3.01484972,3154.7,3154.3,2.90431965]
[1720909588723,3.01484972,3154.7,3154.3,2.4048]
[1720909589444,3.01484972,3154.6,3154.2,0.00139645]
[1720909589625,3.01484972,3154.4,3154.2,0.00139645]
[1720909589860,0.65411627,3154.3,3154.2,0.00139645]
[1720909590217,3.01398201,3154.3,3154.2,0.00139645]
[1720909590424,0.65411627,3154.5,3154.2,0.00139645]
[1720909590624,3.01395936,3154.6,3154.2,0.00139645]
[1720909590923,3.01395936,3154.7,3154.2,0.00139645]
[1720909591123,3.01395936,3155.0,3154.2,0.00139645]
[1720909591357,3.01395936,3155.0,3154.2,0.2674361]
[1720909591521,3.01395936,3155.0,3154.2,0.00139645]
[1720909591718,0.65411627,3155.4,3154.2,0.00139645]
[1720909591719,3.01395936,3154.9,3154.2,0.00139645]
[1720909593036,3.01450536,3154.9,3154.2,0.00139645]
[1720909593234,3.01450536,3155.0,3154.2,0.00139645]
[1720909594261,3.01450536,3155.1,3154.2,0.00139645]
[1720909595131,3.01450536,3155.2,3154.2,0.00139645]
[1720909595567,3.01450536,3155.0,3154.2,0.00139645]
[1720909595769,3.01450536,3154.8,3154.2,0.00139645]
[1720909596057,5.83,3155.6,3154.2,0.00139645]
[1720909596263,3.01420178,3154.9,3154.2,0.00139645]
[1720909596633,1.7,3155.1,3154.2,0.00139645]
[1720909596634,3.01411577,3154.6,3154.2,0.00139645]
[1720909596857,0.64879983,3155.0,3154.2,0.00059645]
[1720909597058,3.01374077,3154.5,3154.2,0.00059645]
[1720909597262,3.01374077,3154.7,3154.2,0.00059645]
[1720909597426,4.5,3155.0,3154.2,0.00059645]
[1720909597427,3.01374077,3154.6,3154.2,0.00059645]
[1720909597971,3.01374077,3154.7,3154.2,0.00059645]
[1720909598273,3.01374077,3154.8,3154.2,0.00059645]
[1720909598462,1.09885161,3154.7,3154.2,0.00059645]
[1720909598673,3.01374077,3154.8,3154.2,0.00059645]
[1720909599227,4.11271827,3154.8,3154.2,0.00059645]
[1720909599528,1.09886838,3154.7,3154.2,0.00059645]
[1720909599744,3.0137751,3154.8,3154.2,0.00059645]
[1720909599955,1.09886917,3154.7,3154.2,0.00059645]
[1720909600259,3.0137751,3154.8,3154.2,0.00059645]
[1720909600468,1.09887901,3154.7,3154.2,0.00059645]
[1720909600669,4.5137751,3154.8,3154.2,0.00059645]
[1720909600831,1.09888278,3154.7,3154.2,0.00059645]
[1720909601363,4.5137751,3154.8,3154.2,0.00059645]
[1720909601739,4.09888292,3154.7,3154.2,0.00059645]
[1720909601936,3.0,3154.7,3154.2,0.00059645]
[1720909602866,3.01405678,3154.9,3154.2,0.00059645]
[1720909603072,3.0,3154.8,3154.2,0.00059645]
[1720909603439,11.80620573,3155.1,3154.2,0.00059645]
[1720909605285,6.366,3155.1,3154.2,0.00059645]
[1720909605432,3.01405678,3155.4,3154.2,0.00059645]
[1720909605627,3.01405678,3155.5,3154.2,0.00059645]
[1720909605931,3.01477467,3155.5,3154.2,0.00059645]
[1720909606137,4.11333078,3155.5,3154.2,0.00059645]
[1720909606361,2.63,3155.6,3154.2,0.00059645]
[1720909606667,5.64481702,3155.6,3154.2,0.00059645]
[1720909607170,4.11330576,3155.5,3154.2,0.00059645]
[1720909607558,4.11330576,3155.5,3154.4,7.2523]
[1720909607761,5.64481702,3155.6,3154.5,2.3088]
[1720909607934,3.01481702,3155.7,3154.5,2.3088]
[1720909608138,4.11317986,3155.6,3154.5,2.3088]
[1720909608365,3.01481702,3155.6,3155.2,7.2523]
[1720909608535,1.8167,3156.8,3155.2,7.2523]
[1720909608536,3.01481702,3155.7,3155.2,7.2523]
[1720909608752,3.01481702,3155.8,3155.2,7.2523]
[1720909609073,0.96254074,3157.3,3155.2,7.2523]
[1720909609074,3.01541602,3155.9,3155.2,7.2523]
[1720909609248,1.09829439,3155.7,3155.3,2.3088]
[1720909609568,3.01541602,3156.0,3155.3,2.3088]
[1720909610251,3.01541602,3155.8,3155.3,2.3088]
[1720909610447,4.11362211,3155.8,3155.3,2.3088]
[1720909610637,3.01541602,3155.8,3155.3,2.3088]
[1720909610834,3.01541602,3155.9,3155.3,2.3088]
[1720909611371,3.01541602,3155.7,3155.3,2.3088]
[1720909611578,3.01541602,3155.7,3155.3,2.27698857]
[1720909611874,4.11360296,3155.6,3155.3,2.27698857]
[1720909612044,1.5,3156.8,3155.3,2.27698857]
[1720909612245,3.01560227,3155.4,3155.3,2.27698857]
[1720909612445,1.09820882,3155.4,3155.3,2.27698857]
[1720909612661,1.09820882,3156.4,3155.3,2.27698857]
[1720909612847,5.59820882,3156.4,3155.3,2.27698857]
[1720909613037,1.09820882,3156.3,3155.3,2.22698857]
[1720909613662,1.07320882,3156.3,3155.3,2.22698857]
[1720909613874,3.0,3156.4,3155.3,2.22698857]
[1720909614184,3.0,3156.7,3155.3,2.22698857]
[1720909614354,1.7,3156.4,3155.3,2.22698857]
[1720909615382,3.0,3156.7,3155.3,2.22698857]
[1720909616937,1.5,3156.6,3155.3,2.22698857]
[1720909617138,1.7,3156.4,3155.3,2.22698857]
[1720909618271,1.5,3156.2,3155.3,2.22698857]
[1720909618467,1.7,3156.0,3154.7,2.343]
[1720909619151,4.7,3156.3,3154.7,2.343]
[1720909619465,3.0,3156.2,3154.7,2.343]
[1720909619844,4.7,3156.3,3154.7,2.343]
[1720909620610,2.849,3156.8,3154.7,2.343]
[1720909620765,2.849,3156.8,3154.8,0.55]
[1720909620968,1.7,3156.7,3154.8,1.320989]
[1720909621171,1.7,3156.3,3154.7,2.343]
[1720909622374,3.0,3156.5,3154.7,2.343]
[1720909622613,3.0,3156.7,3154.7,2.343]
[1720909622892,3.0,3156.7,3154.8,2.343]
[1720909623106,3.0,3156.7,3154.8,5.11182]
[1720909623390,3.0,3156.7,3154.9,0.733072]
[1720909623705,1.09818871,3156.6,3155.1,2.343]
[1720909623859,1.09818871,3156.5,3155.1,2.343]
[1720909624052,1.09818669,3156.4,3155.1,2.343]
[1720909624299,1.7,3155.5,3154.2,0.00059645]
[1720909624518,1.09818669,3155.4,3154.2,0.00059645]
[1720909624795,1.7,3155.5,3154.2,0.00059645]
[1720909624796,1.11355877,3155.3,3154.2,0.00059645]
[1720909625030,1.7,3155.5,3154.2,0.00059645]
[1720909625031,1.11381518,3155.2,3154.2,0.00059645]
[1720909625182,1.09818669,3155.1,3154.2,0.00059645]
[1720909625386,1.09818669,3155.0,3154.2,0.00059645]
[1720909625620,1.09818669,3154.9,3154.2,0.00059645]
[1720909625828,3.0,3155.4,3154.2,0.00059645]
[1720909625829,1.09818669,3154.8,3154.2,0.00059645]
[1720909626129,1.09818669,3154.7,3154.2,0.00059645]
[1720909626300,1.09818669,3154.6,3154.2,0.00059645]
[1720909626631,1.09818669,3154.5,3154.2,0.00059645]
[1720909626922,1.09818669,3154.4,3154.2,0.00059645]
[1720909627420,1.09882702,3154.3,3154.2,0.00059645]
[1720909630124,1.7447021,3154.3,3154.2,0.00059645]
[1720909630524,0.64587508,3154.3,3154.2,0.00059645]
[1720909630693,1.74462878,3154.3,3154.2,0.00059645]
[1720909630891,0.64587508,3154.3,3154.2,0.00059645]
[1720909631131,2.73275092,3154.3,3154.2,0.00059645]
[1720909631491,2.73275092,3154.3,3153.7,2.31177295]
[1720909631736,0.65546566,3154.1,3153.7,2.31177295]
[1720909631903,1.09875484,3154.0,3153.7,2.31177295]
[1720909632106,1.09875484,3153.9,3153.7,2.31177295]
[1720909632319,1.09875484,3153.8,3153.7,2.31177295]
[1720909632522,1.09875484,3153.8,3153.7,2.86177295]
[1720909632843,1.09875484,3153.8,3153.7,3.62972424]
[1720909633700,1.09863118,3153.8,3153.7,3.62972424]
[1720909633900,1.05493118,3153.8,3153.7,5.84933424]
[1720909636936,0.6555174,3154.3,3153.9,2.21946]
[1720909637155,0.6555174,3154.3,3154.0,0.55]
[1720909637655,0.6555174,3154.3,3154.0,0.826946]
[1720909637814,1.63911127,3154.7,3154.2,2.598]
[1720909637815,0.3375174,3154.7,3154.2,2.598]
[1720909638015,0.3375174,3154.7,3154.3,2.76914]
[1720909638235,0.98327611,3154.9,3154.3,2.76914]
[1720909638439,0.98327611,3154.9,3154.6,2.2547]
[1720909638635,0.98327611,3155.3,3154.7,3.216275]
[1720909639247,0.98327611,3155.2,3154.7,5.814275]
[1720909639551,0.98327611,3155.4,3154.7,5.814275]
[1720909640056,0.98327611,3155.4,3154.8,2.21883]
[1720909640236,0.98327611,3155.4,3154.9,2.76872]
[1720909640443,0.98327611,3155.4,3155.0,2.495552]
[1720909640641,0.98327611,3155.4,3155.0,3.045552]
[1720909640954,0.98327611,3155.4,3155.2,2.21854]
[1720909641178,0.98361212,3156.1,3155.7,2.2547]
[1720909641314,0.98361212,3156.0,3155.7,2.2547]
[1720909641767,0.98361212,3155.8,3155.0,2.2547]
[1720909641919,0.98313071,3155.7,3155.0,2.2547]
[1720909642120,0.98313071,3155.5,3155.0,2.2547]
[1720909642570,0.98313071,3155.6,3155.0,2.2547]
[1720909643139,2.29476026,3156.5,3155.0,2.2547]
[1720909643140,4.0294,3156.8,3155.0,2.2547]
[1720909643460,0.98299546,3155.4,3155.0,2.2547]
[1720909644033,1.09818941,3155.3,3155.0,2.2547]
[1720909644231,1.09818941,3155.2,3155.0,2.2547]
[1720909644555,1.09818941,3155.1,3155.0,2.2547]
[1720909645164,2.08118487,3155.1,3155.0,2.2547]
[1720909645519,1.09818941,3155.1,3155.0,2.2547]
[1720909645923,1.09818941,3155.1,3155.0,4.4734]
[1720909646116,1.09818941,3155.1,3155.0,5.952422]
[1720909646350,1.31066061,3155.5,3155.0,5.952422]
[1720909646351,0.98299546,3155.5,3155.3,2.21848]
[1720909646531,1.09807738,3155.4,3155.3,2.598]
[1720909646732,2.08107284,3155.4,3155.3,4.81648]
[1720909646935,1.09807738,3155.4,3155.3,5.36648]
[1720909647161,1.09807738,3155.4,3155.3,6.124988]
[1720909647729,0.98299546,3155.7,3155.6,2.21827]
[1720909647967,1.09795394,3155.7,3155.6,2.21827]
[1720909649644,1.31066061,3156.1,3155.6,2.21827]
[1720909649645,0.98345869,3156.0,3155.7,2.21819]
[1720909649822,1.09642733,3155.9,3155.7,2.21819]
[1720909650052,0.98345869,3156.0,3155.7,5.485313]
[1720909650485,0.98345869,3155.9,3155.7,5.485313]
[1720909650690,0.70845869,3156.0,3155.7,5.485313]
[1720909650863,1.31127825,3156.3,3155.8,2.21812]
[1720909651051,1.31127825,3156.2,3155.8,2.21812]
[1720909651773,1.31127825,3156.1,3155.7,2.598]
[1720909651958,1.31127825,3156.1,3155.7,4.81615]
[1720909652167,1.31127825,3156.2,3155.7,5.35136128]
[1720909652462,1.31127825,3156.3,3155.8,2.21811]
[1720909652657,1.31127825,3156.4,3155.9,2.21802]
[1720909652853,1.31127825,3156.5,3155.9,2.21802]
[1720909653188,1.31127825,3156.6,3156.1,2.598]
[1720909653553,1.31127825,3156.6,3156.1,4.81591]
[1720909654194,1.31127825,3156.7,3156.1,5.519303]
[1720909655550,1.31127825,3156.8,3156.1,5.519303]
[1720909655751,1.31127825,3156.8,3156.2,2.21784]
[1720909656291,1.31127825,3156.9,3156.3,2.21778]
[1720909656503,1.31127825,3157.0,3156.4,2.21771]
[1720909656671,1.63670767,3157.1,3156.4,2.21771]
[1720909656672,1.31127825,3157.1,3156.4,2.661259]
[1720909658302,1.31127825,3157.1,3156.5,2.3134]
[1720909658593,1.31127825,3157.1,3156.5,4.53104]
[1720909658993,1.31127825,3157.1,3156.1,2.921303]
[1720909659202,1.31127825,3157.1,3156.1,2.21791]
[1720909659380,1.31127825,3157.1,3156.2,2.21784]
[1720909659560,1.31127825,3157.1,3156.3,2.21776]
[1720909662860,1.31127825,3157.1,3155.9,2.3134]
[1720909663059,1.31127825,3157.1,3155.5,6.38363]
[1720909663602,1.31127825,3157.1,3155.5,4.1653]
[1720909663761,1.31127825,3157.1,3155.5,6.38359]
[1720909663955,1.31127825,3157.1,3155.5,4.16529]
[1720909664157,1.31127825,3157.1,3155.7,2.21815]
[1720909664365,0.98030334,3156.7,3156.0,2.21799]
[1720909664597,0.98030334,3156.9,3156.0,2.21799]
[1720909665702,0.98030334,3157.0,3156.3,1.947]
[1720909665910,0.98030334,3157.0,3156.4,2.3134]
[1720909666799,0.98030334,3157.1,3156.4,2.3134]
[1720909667019,0.98030334,3157.0,3156.4,2.3134]
[1720909668166,0.98030334,3157.0,3156.0,2.3134]
[1720909668475,0.98030334,3156.8,3156.0,2.3134]
[1720909669096,0.98030334,3156.8,3155.9,1.947]
[1720909669324,0.98030334,3156.6,3155.9,1.947]
[1720909669609,2.07825285,3156.5,3155.5,6.47869]
[1720909669822,1.09794951,3156.4,3155.5,6.47868]
[1720909669988,0.98030334,3156.5,3155.5,6.47868]
[1720909670188,1.09798263,3156.4,3155.5,6.47868]
[1720909670388,1.09798263,3156.3,3155.6,2.21827]
[1720909670627,1.09798263,3156.2,3155.6,2.60537861]
[1720909670823,1.09798263,3156.4,3155.6,2.60537861]
[1720909671115,1.09798263,3156.3,3155.6,2.60537861]
[1720909671289,1.09798263,3156.5,3155.7,2.2182]
[1720909671487,1.09798263,3156.4,3155.7,2.2182]
[1720909671719,1.31127825,3156.8,3155.7,2.2182]
[1720909671720,1.09798263,3156.3,3155.7,3.12659886]
[1720909671921,1.09798263,3156.2,3155.9,1.947]
[1720909672090,1.09798263,3156.1,3155.9,1.947]
[1720909672420,1.09798263,3156.0,3155.9,1.947]
[1720909672835,1.09790169,3156.0,3155.9,4.16506]
[1720909673038,1.09790169,3156.0,3155.9,4.67240589]
[1720909673330,1.09790023,3156.0,3155.9,1.947]
[1720909673532,1.09788173,3156.0,3155.9,1.947]
[1720909674624,1.09788173,3156.0,3155.9,4.16506]
[1720909674830,1.09788173,3156.0,3155.9,6.93312]
[1720909676518,0.98030334,3156.8,3156.2,2.21784]
[1720909676703,1.63399434,3157.1,3156.4,2.21768]
[1720909676704,1.09775701,3156.7,3156.4,2.21768]
[1720909676902,1.09775701,3156.6,3156.4,0.39311578]
[1720909677108,0.98030334,3157.0,3156.5,1.947]
[1720909677310,1.0976859,3156.9,3156.5,1.947]
[1720909677635,1.0976859,3156.8,3156.5,1.947]
[1720909677860,1.0976859,3156.7,3156.5,1.947]
[1720909678136,1.0976859,3156.6,3156.5,1.947]
[1720909679324,1.31127825,3157.0,3156.5,1.947]
[1720909679325,1.0976859,3156.8,3156.5,2.63921658]